fUSD/lending_fUSD_20240331
["ID","MTS","AMOUNT","RATE_DAILY","PERIOD"]
[321078241,1711883448242,-210.0,0.0004191,15]
[321078242,1711883448252,-500.0,0.00041917,4]
[321078243,1711883448261,-500.0,0.00041917,4]
[321078244,1711883448270,-500.0,0.00041917,4]
[321078245,1711883448280,-679.43,0.00041917,2]
[321078246,1711883448289,-500.0,0.00041917,4]
[321078247,1711883448298,-500.0,0.00041917,4]
[321078248,1711883448307,-500.0,0.00041917,4]
[321078249,1711883448317,-500.0,0.00041917,4]
[321078250,1711883448326,-500.0,0.00041917,4]
[321078251,1711883448335,-150.0,0.00041917,4]
[321078252,1711883448343,-555.12,0.00041917,4]
[321078253,1711883448352,-500.0,0.00041917,2]
[321078254,1711883448362,-500.0,0.00041917,4]
[321078255,1711883448371,-500.0,0.00041917,4]
[321078256,1711883448379,-549.48,0.00041917,4]
[321078257,1711883448389,-1070.48,0.00041917,4]
[321078258,1711883448398,-500.0,0.00041917,4]
[321078259,1711883448410,-151.0,0.00041917,14]
[321078260,1711883448419,-243.110355,0.00041917,14]
[321078261,1711883448428,-500.0,0.00041917,4]
[321078262,1711883448437,-500.0,0.00041917,4]
[321078263,1711883448449,-500.0,0.00041917,4]
[321078264,1711883448458,-8639.74,0.00041917,4]
[321078265,1711883448467,-500.0,0.00041917,4]
[321078266,1711883448476,-500.0,0.00041917,4]
[321078267,1711883448489,-500.0,0.00041917,4]
[321078268,1711883448498,-500.0,0.00041917,4]
[321078269,1711883448508,-1862.31,0.00041917,4]
[321078270,1711883448518,-500.0,0.00041917,4]
[321078271,1711883448528,-500.0,0.00041917,4]
[321078272,1711883448539,-507.34,0.00041917,4]
[321078273,1711883448548,-2605.92,0.00041917,4]
[321078274,1711883448558,-500.0,0.00041917,4]
[321078275,1711883448567,-9670.17,0.00041917,4]
[321078276,1711883448577,-1122.17,0.00041917,4]
[321078277,1711883448586,-500.0,0.00041917,4]
[321078278,1711883448595,-500.0,0.00041917,4]
[321078279,1711883448606,-1712.16,0.00041917,4]
[321078280,1711883448615,-500.0,0.00041917,4]
[321078281,1711883448625,-2748.38,0.00041917,4]
[321078282,1711883448634,-500.0,0.00041917,4]
[321078283,1711883448645,-500.0,0.00041917,4]
[321078284,1711883448655,-500.0,0.00041917,4]
[321078285,1711883448668,-500.0,0.00041917,4]
[321078286,1711883448678,-500.0,0.00041917,4]
[321078287,1711883448687,-4301.58,0.00041917,4]
[321078288,1711883448696,-531.6,0.00041917,4]
[321078289,1711883448707,-500.0,0.00041917,4]
[321078290,1711883448716,-500.0,0.00041917,4]
[321078291,1711883448725,-9908.7,0.00041917,4]
[321078292,1711883448734,-3656.45,0.00041917,4]
[321078293,1711883448743,-707.92,0.00041917,4]
[321078294,1711883448752,-2921.85,0.00041917,4]
[321078295,1711883448762,-500.0,0.00041917,4]
[321078296,1711883448771,-500.0,0.00041917,4]
[321078297,1711883448779,-3783.97,0.00041917,4]
[321078298,1711883448789,-151.0,0.00041917,14]
[321078299,1711883448798,-500.0,0.00041917,4]
[321078300,1711883448808,-2102.16,0.00041917,4]
[321078301,1711883448817,-15160.16,0.00041917,4]
[321078302,1711883448827,-2273.33,0.00041917,4]
[321078303,1711883448836,-1657.86,0.00041917,4]
[321078304,1711883448845,-500.0,0.00041917,4]
[321078305,1711883448854,-500.0,0.00041917,4]
[321078306,1711883448864,-3435.73,0.00041917,4]
[321078307,1711883448874,-500.0,0.00041917,4]
[321078308,1711883448883,-519.19780036,0.00041917,4]
[321078309,1711883448892,-500.0,0.00041917,4]
[321078310,1711883448902,-500.0,0.00041917,4]
[321078311,1711883448911,-151.0,0.00041917,14]
[321078312,1711883448921,-3547.44,0.00041917,4]
[321078313,1711883448930,-2803.49,0.00041917,4]
[321078314,1711883448940,-500.0,0.00041917,4]
[321078315,1711883448949,-152.030222,0.00041917,14]
[321078316,1711883448958,-500.0,0.00041917,4]
[321078317,1711883448968,-500.0,0.00041917,4]
[321078318,1711883448978,-152.030222,0.00041917,14]
[321078319,1711883448988,-249.33041,0.00041917,14]
[321078320,1711883448997,-151.0,0.00041917,14]
[321078321,1711883449006,-4194.52,0.00041917,4]
[321078322,1711883449015,-9215.25,0.00041917,4]
[321078323,1711883449025,-500.0,0.00041917,4]
[321078324,1711883449035,-249.33041,0.00041917,14]
[321078325,1711883449044,-500.0,0.00041917,4]
[321078326,1711883449053,-151.0,0.00041917,14]
[321078327,1711883449063,-2011.87,0.00041917,4]
[321078328,1711883449073,-500.0,0.00041917,4]
[321078329,1711883449082,-500.0,0.00041917,4]
[321078330,1711883449092,-4752.87,0.00041917,4]
[321078331,1711883449101,-500.0,0.00041917,4]
[321078332,1711883449116,-2598.4,0.00041917,4]
[321078333,1711883449125,-2126.31,0.00041917,4]
[321078334,1711883449134,-4176.30814711,0.00041917,4]
[321078335,1711883449647,-279.80808581,0.00041917,4]
[321078336,1711883449659,-2122.92,0.00041917,4]
[321078337,1711883449717,-5298.79376708,0.00041917,4]
[321078338,1711883449726,-518.02,0.00041917,4]
[321078339,1711883449736,-1937.78,0.00041917,4]
[321078340,1711883449745,-10453.94,0.00041917,4]
[321078341,1711883449755,-1076.45,0.00041917,4]
[321078342,1711883449764,-500.0,0.00041917,4]
[321078343,1711883449774,-500.0,0.00041917,4]
[321078344,1711883449783,-500.0,0.00041917,4]
[321078345,1711883449792,-2336.79,0.00041917,4]
[321078346,1711883449802,-552.15,0.00041917,4]
[321078347,1711883449812,-1920.41,0.00041917,4]
[321078348,1711883449821,-2290.08,0.00041917,4]
[321078349,1711883449832,-1182.09,0.00041917,4]
[321078350,1711883449843,-3941.13,0.00041917,4]
[321078351,1711883449853,-2482.25,0.00041917,4]
[321078352,1711883449863,-4510.11623292,0.00041917,4]
[321078353,1711883449915,-11731.47376708,0.00041917,4]
[321078354,1711883449925,-3222.61,0.00041917,4]
[321078355,1711883449935,-500.0,0.00041917,4]
[321078356,1711883449949,-500.0,0.00041917,4]
[321078357,1711883449958,-535.83,0.00041917,4]
[321078358,1711883449968,-500.0,0.00041917,4]
[321078359,1711883449977,-2590.66,0.00041917,4]
[321078360,1711883449986,-500.0,0.00041917,4]
[321078361,1711883449996,-609.57,0.00041917,4]
[321078362,1711883450006,-3509.53,0.00041917,4]
[321078363,1711883450015,-500.0,0.00041917,4]
[321078364,1711883450025,-5528.21,0.00041917,4]
[321078365,1711883450034,-2238.05,0.00041917,4]
[321078366,1711883450044,-663.74,0.00041917,4]
[321078367,1711883450054,-2433.18,0.00041917,4]
[321078368,1711883450064,-500.0,0.00041917,4]
[321078369,1711883450075,-18780.41,0.00041917,4]
[321078370,1711883450085,-502.77,0.00041917,4]
[321078371,1711883450095,-1950.88,0.00041917,4]
[321078372,1711883450106,-500.0,0.00041917,4]
[321078373,1711883450115,-500.0,0.00041917,4]
[321078374,1711883450125,-608.39,0.00041917,4]
[321078375,1711883450136,-500.0,0.00041917,4]
[321078376,1711883450147,-15560.64790881,0.00041917,4]
[321078377,1711883450324,-1101.80209119,0.00041917,4]
[321078378,1711883450334,-1551.3,0.00041917,4]
[321078379,1711883450344,-171.54356815,0.00041917,4]
[321078380,1711883450509,-511.24643185,0.00041917,4]
[321078381,1711883450518,-488.75356815,0.00041917,4]
[321078382,1711883450530,-11.24643185,0.00041917,4]
[321078383,1711883450540,-4294.08,0.00041917,4]
[321078384,1711883450549,-935.22,0.00041917,4]
[321078385,1711883450559,-1935.59,0.00041917,4]
[321078386,1711883450569,-1000.0,0.00041918,14]
[321078387,1711883450580,-210.0,0.0004192,15]
[321078388,1711883450590,-210.0,0.0004193,15]
[321078389,1711883450601,-204.96650003,0.00041938,4]
[321078390,1711883450612,-290.44079092,0.00041938,4]
[321078391,1711883450621,-156.57341488,0.00041938,4]
[321078392,1711883450631,-170.56193964,0.00041939,4]
[321078393,1711883450641,-150.5,0.00041969,15]
[321078394,1711883450650,-3102.03,0.00041976,2]
[321078395,1711883450660,-150.5,0.00041977,15]
[321078396,1711883450669,-210.0,0.00041978,15]
[321078397,1711883450678,-4554.2201885,0.00041978,2]
[321078398,1711883450687,-3323.2391526,0.00041978,2]
[321078399,1711883450697,-150.5,0.00041979,15]
[321078400,1711883450707,-204.82,0.0004198,15]
[321078401,1711883450718,-7092.83503196,0.00041981,5]
[321078402,1711883450727,-1000.0,0.00041986,14]
[321078403,1711883450737,-150.5,0.00041987,15]
[321078404,1711883450747,-210.0,0.00041988,15]
[321078405,1711883450756,-150.5,0.00041989,15]
[321078406,1711883450766,-255.82,0.0004199,15]
[321078407,1711883450777,-150.5,0.0004199,15]
[321078408,1711883450787,-195.26,0.0004199,15]
[321078409,1711883450797,-150.5,0.00041997,15]
[321078410,1711883450806,-210.0,0.00041998,15]
[321078411,1711883450816,-503.02021285,0.00042,2]
[321078412,1711883450826,-300.0,0.00042,2]
[321078413,1711883450835,-481.97,0.00042,7]
[321078414,1711883450845,-10000.0,0.00042,5]
[321078415,1711883450855,-545.59,0.00042,7]
[321078416,1711883450864,-4888.0001254,0.00042,2]
[321078417,1711883450874,-8757.14506445,0.00042,2]
[321078418,1711883450883,-1000.0,0.00042,2]
[321078419,1711883450893,-7457.037024,0.00042,2]
[321078420,1711883450902,-480.0,0.00042,28]
[321078421,1711883450912,-1477.53348346,0.00042,2]
[321078422,1711883450922,-10000.0,0.00042,14]
[321078423,1711883450931,-20332.37966525,0.00042,5]
[321078424,1711883450940,-569.69,0.00042,7]
[321078425,1711883450950,-226.92588351,0.00042,30]
[321078426,1711883450959,-567.32117692,0.00042,30]
[321078427,1711883450969,-478.03497912,0.00042,60]
[321078428,1711883450983,-57347.3856994,0.00042,30]
[321078429,1711883450996,-113078.82690965,0.00042,30]
[321078430,1711883451006,-10000.0,0.00042,14]
[321078431,1711883451019,-500.0,0.00042,3]
[321078432,1711883451032,-1139.90992572,0.00042,30]
[321078433,1711883451041,-294.0,0.00042,14]
[321078434,1711883451051,-151.0,0.00042,14]
[321078435,1711883451061,-287.85358,0.00042,14]
[321078436,1711883451071,-151.0,0.00042,14]
[321078437,1711883451081,-3055.35822428,0.00042,10]
[321078438,1711883451091,-52252.0,0.00042,32]
[321078439,1711883451100,-151.0,0.00042,14]
[321078440,1711883451110,-151.0,0.00042,14]
[321078441,1711883451121,-151.0,0.00042,14]
[321078442,1711883451130,-151.0,0.00042,14]
[321078443,1711883451140,-151.0,0.00042,14]
[321078444,1711883451149,-159.471035,0.00042,14]
[321078445,1711883451159,-312.466494,0.00042,14]
[321078446,1711883451169,-174.551947,0.00042,14]
[321078447,1711883451178,-151.0,0.00042,14]
[321078448,1711883451190,-312.466494,0.00042,14]
[321078449,1711883451199,-174.551947,0.00042,14]
[321078450,1711883451209,-431.925234,0.00042,14]
[321078451,1711883451219,-749.0,0.00042,31]
[321078452,1711883451228,-431.925234,0.00042,14]
[321078453,1711883451238,-789.603829,0.00042,2]
[321078454,1711883451247,-151.0,0.00042,14]
[321078455,1711883451257,-154.01915,0.00042,14]
[321078456,1711883451267,-151.0,0.00042,14]
[321078457,1711883451278,-190.794345,0.00042,14]
[321078458,1711883451288,-151.0,0.00042,14]
[321078459,1711883451298,-338.821322,0.00042,14]
[321078460,1711883451308,-338.821322,0.00042,14]
[321078461,1711883451317,-151.0,0.00042,14]
[321078462,1711883451327,-151.0,0.00042,14]
[321078463,1711883451337,-151.0,0.00042,14]
[321078464,1711883451347,-151.0,0.00042,14]
[321078465,1711883451357,-151.0,0.00042,14]
[321078466,1711883451366,-404.501862,0.00042,14]
[321078467,1711883451376,-404.501862,0.00042,14]
[321078468,1711883451385,-151.0,0.00042,14]
[321078469,1711883451396,-151.0,0.00042,14]
[321078470,1711883451410,-151.0,0.00042,14]
[321078471,1711883451419,-525.798803,0.00042,14]
[321078472,1711883451429,-525.798803,0.00042,14]
[321078473,1711883451439,-151.0,0.00042,14]
[321078474,1711883451449,-170.535119,0.00042,14]
[321078475,1711883451459,-170.535119,0.00042,14]
[321078476,1711883451469,-151.0,0.00042,14]
[321078477,1711883451478,-151.0,0.00042,14]
[321078478,1711883451488,-151.0,0.00042,14]
[321078479,1711883451499,-152.030222,0.00042,14]
[321078480,1711883451509,-152.030222,0.00042,14]
[321078481,1711883451518,-249.33041,0.00042,14]
[321078482,1711883451528,-151.0,0.00042,14]
[321078483,1711883451537,-249.33041,0.00042,14]
[321078484,1711883451546,-151.0,0.00042,14]
[321078485,1711883451556,-151.0,0.00042,14]
[321078486,1711883451565,-1928.129715,0.00042,14]
[321078487,1711883451574,-1928.129715,0.00042,14]
[321078488,1711883451583,-151.0,0.00042,14]
[321078489,1711883451593,-427.07422,0.00042,14]
[321078490,1711883451603,-427.07422,0.00042,14]
[321078491,1711883451613,-151.0,0.00042,14]
[321078492,1711883451622,-151.0,0.00042,14]
[321078493,1711883451632,-151.0,0.00042,14]
[321078494,1711883451642,-151.0,0.00042,14]
[321078495,1711883451652,-151.0,0.00042,14]
[321078496,1711883451662,-158.276092,0.00042,14]
[321078497,1711883451672,-154.098789,0.00042,14]
[321078498,1711883451681,-165.261704,0.00042,14]
[321078499,1711883451691,-151.0,0.00042,7]
[321078500,1711883451700,-1234.02582745,0.00042,2]
[321078501,1711883451710,-1234.02582745,0.00042,2]
[321078502,1711883451719,-1234.02582745,0.00042,2]
[321078503,1711883451728,-1234.02582745,0.00042,2]
[321078504,1711883451738,-1234.02582745,0.00042,2]
[321078505,1711883451747,-1234.02582745,0.00042,2]
[321078506,1711883451756,-1234.02582745,0.00042,2]
[321078507,1711883451766,-1234.02582745,0.00042,2]
[321078508,1711883451776,-1234.02582745,0.00042,2]
[321078509,1711883451786,-1234.02582745,0.00042,2]
[321078510,1711883451795,-1234.02582745,0.00042,2]
[321078511,1711883451804,-1234.02582745,0.00042,2]
[321078512,1711883451814,-1234.02582745,0.00042,2]
[321078513,1711883451823,-1234.02582745,0.00042,2]
[321078514,1711883451832,-1234.02582745,0.00042,2]
[321078515,1711883451842,-1234.02582745,0.00042,2]
[321078516,1711883451851,-1234.02582745,0.00042,2]
[321078517,1711883451860,-1234.02582745,0.00042,2]
[321078518,1711883451870,-1234.02582745,0.00042,2]
[321078519,1711883451880,-1234.02582745,0.00042,2]
[321078520,1711883451889,-1234.02582745,0.00042,2]
[321078521,1711883451898,-1234.02582745,0.00042,2]
[321078522,1711883451907,-165.261704,0.00042,14]
[321078523,1711883451916,-1234.02582745,0.00042,2]
[321078524,1711883451925,-1234.02582745,0.00042,2]
[321078525,1711883451934,-1234.02582745,0.00042,2]
[321078526,1711883451944,-1234.02582745,0.00042,2]
[321078527,1711883451953,-1234.02582745,0.00042,2]
[321078528,1711883451962,-1234.02582745,0.00042,2]
[321078529,1711883451971,-1234.02582745,0.00042,2]
[321078530,1711883451980,-1234.02582745,0.00042,2]
[321078531,1711883451990,-1234.02582745,0.00042,2]
[321078532,1711883452036,-1234.02582745,0.00042,2]
[321078533,1711883452047,-1234.02582745,0.00042,2]
[321078534,1711883452056,-1234.02582745,0.00042,2]
[321078535,1711883452069,-1234.02582745,0.00042,2]
[321078536,1711883452079,-1234.02582745,0.00042,2]
[321078537,1711883452088,-1234.02582745,0.00042,2]
[321078538,1711883452097,-1234.02582745,0.00042,2]
[321078539,1711883452107,-1234.02582745,0.00042,2]
[321078540,1711883452116,-1234.02582745,0.00042,2]
[321078541,1711883452126,-1234.02582745,0.00042,2]
[321078542,1711883452135,-1234.02582745,0.00042,2]
[321078543,1711883452145,-1234.02582745,0.00042,2]
[321078544,1711883452154,-1234.02582745,0.00042,2]
[321078545,1711883452163,-1234.02582745,0.00042,2]
[321078546,1711883452173,-1234.02582745,0.00042,2]
[321078547,1711883452183,-1234.02582745,0.00042,2]
[321078548,1711883452192,-1234.02582745,0.00042,2]
[321078549,1711883452202,-1234.02582745,0.00042,2]
[321078550,1711883452211,-1234.02582745,0.00042,2]
[321078551,1711883452221,-1234.02582745,0.00042,2]
[321078552,1711883452230,-1234.02582745,0.00042,2]
[321078553,1711883452240,-1234.02582745,0.00042,2]
[321078554,1711883452249,-1234.02582745,0.00042,2]
[321078555,1711883452258,-1234.02582745,0.00042,2]
[321078556,1711883452268,-1234.02582745,0.00042,2]
[321078557,1711883452277,-1234.02582745,0.00042,2]
[321078558,1711883452286,-1234.02582745,0.00042,2]
[321078559,1711883452295,-1234.02582745,0.00042,2]
[321078560,1711883452304,-1234.02582745,0.00042,2]
[321078561,1711883452313,-1234.02582745,0.00042,2]
[321078562,1711883452323,-1234.02582745,0.00042,2]
[321078563,1711883452333,-1234.02582745,0.00042,2]
[321078564,1711883452342,-1234.02582745,0.00042,2]
[321078565,1711883452351,-1234.02582745,0.00042,2]
[321078566,1711883452361,-1234.02582745,0.00042,2]
[321078567,1711883452370,-1234.02582745,0.00042,2]
[321078568,1711883452379,-1234.02582745,0.00042,2]
[321078569,1711883452388,-1234.02582745,0.00042,2]
[321078570,1711883452397,-1234.02582745,0.00042,2]
[321078571,1711883452408,-151.0,0.00042,14]
[321078572,1711883452419,-1234.02582745,0.00042,2]
[321078573,1711883452429,-1234.02582745,0.00042,2]
[321078574,1711883452438,-1234.02582745,0.00042,2]
[321078575,1711883452447,-1234.02582745,0.00042,2]
[321078576,1711883452458,-1234.02582745,0.00042,2]
[321078577,1711883452468,-1234.02582745,0.00042,2]
[321078578,1711883452477,-1234.02582745,0.00042,2]
[321078579,1711883452486,-1234.02582745,0.00042,2]
[321078580,1711883452496,-420.087501,0.00042,14]
[321078581,1711883452506,-1234.02582745,0.00042,2]
[321078582,1711883452515,-1234.02582745,0.00042,2]
[321078583,1711883452526,-1234.02582745,0.00042,2]
[321078584,1711883452536,-1234.02582745,0.00042,2]
[321078585,1711883452546,-1234.02582745,0.00042,2]
[321078586,1711883452557,-1234.02582745,0.00042,2]
[321078587,1711883452566,-1234.02582745,0.00042,2]
[321078588,1711883452576,-1234.02582745,0.00042,2]
[321078589,1711883452585,-1234.02582745,0.00042,2]
[321078590,1711883452595,-1234.02582745,0.00042,2]
[321078591,1711883452605,-1234.02582745,0.00042,2]
[321078592,1711883452614,-1234.02582745,0.00042,2]
[321078593,1711883452624,-1234.02582745,0.00042,2]
[321078594,1711883452633,-1234.02582745,0.00042,2]
[321078595,1711883452642,-1234.02582745,0.00042,2]
[321078596,1711883452651,-1234.02582745,0.00042,2]
[321078597,1711883452661,-1234.02582745,0.00042,2]
[321078598,1711883452670,-1234.02582745,0.00042,2]
[321078599,1711883452679,-1234.02582745,0.00042,2]
[321078600,1711883452689,-1234.02582745,0.00042,2]
[321078601,1711883452698,-1234.02582745,0.00042,2]
[321078602,1711883452708,-1234.02582745,0.00042,2]
[321078603,1711883452717,-420.087501,0.00042,14]
[321078604,1711883452730,-151.0,0.00042007,14]
[321078605,1711883452740,-166.129593,0.00042007,14]
[321078606,1711883452749,-151.0,0.00042007,14]
[321078607,1711883452759,-151.0,0.00042007,14]
[321078608,1711883452768,-151.0,0.00042007,14]
[321078609,1711883452778,-151.0,0.00042007,14]
[321078610,1711883452787,-151.0,0.00042007,14]
[321078611,1711883452797,-151.0,0.00042007,14]
[321078612,1711883452807,-155.430716,0.00042007,14]
[321078613,1711883452816,-12659.96029287,0.00042007,2]
[321078614,1711883453815,-35745.26839449,0.00042007,2]
[321078615,1711883453825,-151.0,0.00042007,14]
[321078616,1711883453835,-151.0,0.00042007,14]
[321078617,1711883453853,-151.0,0.00042007,14]
[321078618,1711883453863,-151.0,0.00042007,14]
[321078619,1711883453874,-151.0,0.00042007,14]
[321078620,1711883453883,-267.903865,0.00042007,14]
[321078621,1711883453893,-582.8845622,0.00042007,2]
[321078622,1711883453903,-537.1312028,0.00042007,30]
[321078623,1711883453912,-151.0,0.00042007,14]
[321078624,1711883453922,-175.86315,0.00042007,14]
[321078625,1711883453931,-312.466494,0.00042007,14]
[321078626,1711883453942,-312.466494,0.00042007,14]
[321078627,1711883453951,-312.466494,0.00042007,14]
[321078628,1711883453960,-312.466494,0.00042007,14]
[321078629,1711883453970,-312.466494,0.00042007,14]
[321078630,1711883453979,-312.466494,0.00042007,14]
[321078631,1711883453989,-174.551947,0.00042007,14]
[321078632,1711883453998,-151.0,0.00042007,14]
[321078633,1711883454008,-151.0,0.00042007,14]
[321078634,1711883454018,-174.551947,0.00042007,14]
[321078635,1711883454027,-151.0,0.00042007,14]
[321078636,1711883454037,-174.551947,0.00042007,14]
[321078637,1711883454047,-273.692669,0.00042007,14]
[321078638,1711883454056,-174.551947,0.00042007,14]
[321078639,1711883454066,-174.551947,0.00042007,14]
[321078640,1711883454076,-312.466494,0.00042007,14]
[321078641,1711883454085,-174.551947,0.00042007,14]
[321078642,1711883454094,-312.466494,0.00042007,14]
[321078643,1711883454104,-312.466494,0.00042007,14]
[321078644,1711883454113,-312.466494,0.00042007,14]
[321078645,1711883454122,-312.466494,0.00042007,14]
[321078646,1711883454131,-312.466494,0.00042007,14]
[321078647,1711883454140,-174.551947,0.00042007,14]
[321078648,1711883454150,-174.551947,0.00042007,14]
[321078649,1711883454159,-174.551947,0.00042007,14]
[321078650,1711883454168,-174.551947,0.00042007,14]
[321078651,1711883454178,-174.551947,0.00042007,14]
[321078652,1711883454187,-174.551947,0.00042007,14]
[321078653,1711883454196,-431.925234,0.00042007,14]
[321078654,1711883454208,-431.925234,0.00042007,14]
[321078655,1711883454217,-431.925234,0.00042007,14]
[321078656,1711883454228,-431.925234,0.00042007,14]
[321078657,1711883454237,-431.925234,0.00042007,14]
[321078658,1711883454247,-431.925234,0.00042007,14]
[321078659,1711883454256,-431.925234,0.00042007,14]
[321078660,1711883454265,-431.925234,0.00042007,14]
[321078661,1711883454274,-431.925234,0.00042007,14]
[321078662,1711883454283,-431.925234,0.00042007,14]
[321078663,1711883454292,-431.925234,0.00042007,14]
[321078664,1711883454302,-431.925234,0.00042007,14]
[321078665,1711883454311,-151.0,0.00042007,14]
[321078666,1711883454320,-2180.0,0.00042007,30]
[321078667,1711883454330,-237.93754545,0.00042007,2]
[321078668,1711883454339,-1302.01390181,0.0004201,2]
[321078669,1711883454350,-151.0,0.00042032,14]
[321078670,1711883454360,-151.0,0.00042032,14]
[321078671,1711883454369,-151.0,0.00042032,14]
[321078672,1711883454380,-151.0,0.00042032,14]
[321078673,1711883454390,-151.0,0.00042032,14]
[321078674,1711883454399,-2000.0,0.00042032,7]
[321078675,1711883454412,-200.0,0.00042032,7]
[321078676,1711883454421,-151.0,0.00042032,14]
[321078677,1711883454430,-151.0,0.00042032,14]
[321078678,1711883454439,-151.0,0.00042032,14]
[321078679,1711883454449,-151.0,0.00042032,14]
[321078680,1711883454458,-151.0,0.00042032,14]
[321078681,1711883454467,-151.0,0.00042032,14]
[321078682,1711883454476,-151.0,0.00042032,14]
[321078683,1711883454488,-151.0,0.00042032,14]
[321078684,1711883454498,-151.0,0.00042032,14]
[321078685,1711883454508,-151.0,0.00042032,14]
[321078686,1711883454517,-151.0,0.00042032,14]
[321078687,1711883454526,-249.805425,0.00042032,14]
[321078688,1711883454536,-338.821322,0.00042032,14]
[321078689,1711883454545,-338.821322,0.00042032,14]
[321078690,1711883454554,-338.821322,0.00042032,14]
[321078691,1711883454563,-338.821322,0.00042032,14]
[321078692,1711883454572,-338.821322,0.00042032,14]
[321078693,1711883454582,-338.821322,0.00042032,14]
[321078694,1711883454591,-338.821322,0.00042032,14]
[321078695,1711883454600,-338.821322,0.00042032,14]
[321078696,1711883454609,-338.821322,0.00042032,14]
[321078697,1711883454618,-338.821322,0.00042032,14]
[321078698,1711883454627,-338.821322,0.00042032,14]
[321078699,1711883454637,-338.821322,0.00042032,14]
[321078700,1711883454646,-151.0,0.00042032,14]
[321078701,1711883454655,-162.740314,0.00042032,14]
[321078702,1711883454664,-151.0,0.00042032,14]
[321078703,1711883454673,-151.0,0.00042032,14]
[321078704,1711883454682,-151.0,0.00042032,14]
[321078705,1711883454691,-151.0,0.00042032,14]
[321078706,1711883454700,-151.0,0.00042032,14]
[321078707,1711883454709,-284.981914,0.00042032,14]
[321078708,1711883454718,-151.0,0.00042032,14]
[321078709,1711883454727,-151.0,0.00042032,14]
[321078710,1711883454736,-151.0,0.00042032,14]
[321078711,1711883454746,-151.0,0.00042032,14]
[321078712,1711883454755,-162.706374,0.00042032,14]
[321078713,1711883454763,-151.0,0.00042032,14]
[321078714,1711883454773,-151.0,0.00042032,14]
[321078715,1711883454782,-151.0,0.00042032,14]
[321078716,1711883454792,-151.0,0.00042032,14]
[321078717,1711883454801,-179.327014,0.00042032,14]
[321078718,1711883454810,-151.0,0.00042032,14]
[321078719,1711883454819,-151.0,0.00042032,14]
[321078720,1711883454829,-152.737908,0.00042032,14]
[321078721,1711883454838,-404.501862,0.00042032,14]
[321078722,1711883454847,-404.501862,0.00042032,14]
[321078723,1711883454856,-404.501862,0.00042032,14]
[321078724,1711883454865,-404.501862,0.00042032,14]
[321078725,1711883454884,-404.501862,0.00042032,14]
[321078726,1711883454893,-404.501862,0.00042032,14]
[321078727,1711883454903,-404.501862,0.00042032,14]
[321078728,1711883454912,-404.501862,0.00042032,14]
[321078729,1711883454921,-404.501862,0.00042032,14]
[321078730,1711883454930,-404.501862,0.00042032,14]
[321078731,1711883454939,-404.501862,0.00042032,14]
[321078732,1711883454948,-404.501862,0.00042032,14]
[321078733,1711883454957,-151.0,0.00042032,14]
[321078734,1711883454966,-151.0,0.00042032,14]
[321078735,1711883454975,-151.0,0.00042032,14]
[321078736,1711883454984,-169.678284,0.00042032,14]
[321078737,1711883454993,-151.0,0.00042032,14]
[321078738,1711883455002,-151.0,0.00042032,14]
[321078739,1711883455012,-151.0,0.00042032,14]
[321078740,1711883455021,-151.0,0.00042032,14]